fUSD/lending_fUSD_20260106
["ID","MTS","AMOUNT","RATE_DAILY","PERIOD"]
[400584361,1767732660479,-227.177642,0.00043482,120]
[400584362,1767732660488,-227.177642,0.00043482,120]
[400584363,1767732660498,-227.177642,0.00043482,120]
[400584364,1767732660508,-227.177642,0.00043482,120]
[400584365,1767732660517,-227.177642,0.00043482,120]
[400584366,1767732660526,-151.0,0.00043482,7]
[400584367,1767732660536,-151.0,0.00043482,7]
[400584368,1767732660551,-227.177642,0.00043482,120]
[400584369,1767732660560,-151.0,0.00043482,7]
[400584370,1767732660569,-227.177642,0.00043482,120]
[400584371,1767732660579,-151.0,0.00043482,7]
[400584372,1767732660589,-227.177642,0.00043482,120]
[400584373,1767732660599,-151.0,0.00043482,7]
[400584374,1767732660608,-227.177642,0.00043482,120]
[400584375,1767732660618,-151.0,0.00043482,7]
[400584376,1767732660628,-227.177642,0.00043482,120]
[400584377,1767732660638,-178.43321,0.00043482,7]
[400584378,1767732660648,-151.0,0.00043482,120]
[400584379,1767732660658,-151.0,0.00043482,120]
[400584380,1767732660669,-151.0,0.00043482,120]
[400584381,1767732660678,-151.0,0.00043482,120]
[400584382,1767732660689,-151.0,0.00043482,120]
[400584383,1767732660699,-151.0,0.00043482,120]
[400584384,1767732660709,-151.0,0.00043482,120]
[400584385,1767732660719,-151.0,0.00043482,120]
[400584386,1767732660728,-151.0,0.00043482,120]
[400584387,1767732660739,-151.0,0.00043482,120]
[400584388,1767732660749,-298.048454,0.00043482,120]
[400584389,1767732660758,-151.0,0.00043482,120]
[400584390,1767732660768,-151.0,0.00043482,120]
[400584391,1767732660779,-151.0,0.00043482,120]
[400584392,1767732660792,-151.0,0.00043482,120]
[400584393,1767732660802,-151.0,0.00043482,120]
[400584394,1767732660812,-151.0,0.00043482,120]
[400584395,1767732660822,-151.0,0.00043482,120]
[400584396,1767732660832,-265.95046,0.00043482,120]
[400584397,1767732660845,-151.0,0.00043482,120]
[400584398,1767732660856,-151.0,0.00043482,120]
[400584399,1767732660866,-151.0,0.00043482,120]
[400584400,1767732660875,-151.0,0.00043482,120]
[400584401,1767732660886,-151.0,0.00043482,120]
[400584402,1767732660897,-151.0,0.00043482,120]
[400584403,1767732660906,-151.0,0.00043482,120]
[400584404,1767732660918,-193.150653,0.00043482,120]
[400584405,1767732660927,-151.0,0.00043482,120]
[400584406,1767732660937,-151.0,0.00043482,120]
[400584407,1767732660948,-151.0,0.00043482,120]
[400584408,1767732660958,-151.0,0.00043482,120]
[400584409,1767732660967,-151.0,0.00043482,120]
[400584410,1767732660976,-151.0,0.00043482,120]
[400584411,1767732660985,-151.0,0.00043482,120]
[400584412,1767732660995,-151.0,0.00043482,120]
[400584413,1767732661004,-151.0,0.00043482,120]
[400584414,1767732661013,-151.0,0.00043482,120]
[400584415,1767732661022,-151.0,0.00043482,120]
[400584416,1767732661032,-151.0,0.00043482,120]
[400584417,1767732661043,-210.903652,0.00043482,120]
[400584418,1767732661053,-305.04005,0.00043482,120]
[400584419,1767732661062,-305.04005,0.00043482,120]
[400584420,1767732661071,-305.04005,0.00043482,120]
[400584421,1767732661081,-151.0,0.00043482,120]
[400584422,1767732661090,-151.0,0.00043482,120]
[400584423,1767732661099,-305.04005,0.00043482,120]
[400584424,1767732661108,-151.0,0.00043482,120]
[400584425,1767732661117,-305.04005,0.00043482,120]
[400584426,1767732661126,-151.0,0.00043482,120]
[400584427,1767732661135,-151.0,0.00043482,120]
[400584428,1767732661144,-305.04005,0.00043482,120]
[400584429,1767732661154,-204.697972,0.00043482,120]
[400584430,1767732661163,-151.0,0.00043482,120]
[400584431,1767732661171,-305.04005,0.00043482,120]
[400584432,1767732661180,-154.475689,0.00043482,120]
[400584433,1767732661190,-305.04005,0.00043482,120]
[400584434,1767732661199,-305.04005,0.00043482,120]
[400584435,1767732661207,-305.04005,0.00043482,120]
[400584436,1767732661217,-305.04005,0.00043482,120]
[400584437,1767732661226,-151.0,0.00043482,120]
[400584438,1767732661235,-305.04005,0.00043482,120]
[400584439,1767732661244,-151.0,0.00043482,120]
[400584440,1767732661253,-305.04005,0.00043482,120]
[400584441,1767732661263,-151.0,0.00043482,120]
[400584442,1767732661273,-305.04005,0.00043482,120]
[400584443,1767732661282,-151.0,0.00043482,120]
[400584444,1767732661293,-305.04005,0.00043482,120]
[400584445,1767732661303,-151.0,0.00043482,120]
[400584446,1767732661313,-305.04005,0.00043482,120]
[400584447,1767732661323,-151.0,0.00043482,120]
[400584448,1767732661332,-305.04005,0.00043482,120]
[400584449,1767732661342,-151.0,0.00043482,120]
[400584450,1767732661351,-305.04005,0.00043482,120]
[400584451,1767732661360,-305.04005,0.00043482,120]
[400584452,1767732661369,-305.04006,0.00043482,120]
[400584453,1767732661378,-153.782534,0.00043482,120]
[400584454,1767732661387,-151.0,0.00043482,120]
[400584455,1767732661397,-151.0,0.00043482,120]
[400584456,1767732661407,-271.216334,0.00043482,120]
[400584457,1767732661416,-151.0,0.00043482,120]
[400584458,1767732661426,-151.0,0.00043482,120]
[400584459,1767732661435,-151.0,0.00043482,120]
[400584460,1767732661445,-151.0,0.00043482,120]
[400584461,1767732661454,-151.0,0.00043482,120]
[400584462,1767732661463,-151.0,0.00043482,120]
[400584463,1767732661472,-151.0,0.00043482,120]
[400584464,1767732661482,-151.0,0.00043482,120]
[400584465,1767732661492,-151.0,0.00043482,120]
[400584466,1767732661503,-151.0,0.00043482,120]
[400584467,1767732661513,-151.0,0.00043482,120]
[400584468,1767732661523,-198.724959,0.00043482,120]
[400584469,1767732661533,-151.0,0.00043482,120]
[400584470,1767732661544,-1492.906994,0.00043482,120]
[400584471,1767732661553,-1492.906994,0.00043482,120]
[400584472,1767732661563,-1492.906994,0.00043482,120]
[400584473,1767732661573,-1492.906994,0.00043482,120]
[400584474,1767732661583,-1492.906994,0.00043482,120]
[400584475,1767732661593,-1492.906994,0.00043482,120]
[400584476,1767732661603,-1492.906994,0.00043482,120]
[400584477,1767732661613,-151.0,0.00043482,120]
[400584478,1767732661625,-151.0,0.00043482,120]
[400584479,1767732661636,-151.0,0.00043482,120]
[400584480,1767732661645,-1492.906994,0.00043482,120]
[400584481,1767732661656,-192.614882,0.00043482,120]
[400584482,1767732661667,-1492.906994,0.00043482,120]
[400584483,1767732661677,-1492.906994,0.00043482,120]
[400584484,1767732661686,-151.0,0.00043482,120]
[400584485,1767732661697,-1492.906994,0.00043482,120]
[400584486,1767732661707,-151.0,0.00043482,120]
[400584487,1767732661717,-1492.906994,0.00043482,120]
[400584488,1767732661728,-151.0,0.00043482,120]
[400584489,1767732661738,-151.0,0.00043482,120]
[400584490,1767732661748,-1492.906994,0.00043482,120]
[400584491,1767732661758,-151.0,0.00043482,120]
[400584492,1767732661767,-239.57666464,0.00043482,31]
[400584493,1767732661777,-221056.50978814,0.00043482,30]
[400584494,1767732661788,-1203.0,0.00043482,30]
[400584495,1767732661798,-1667658.96667367,0.00043482,7]
[400584496,1767732662550,500.0,0.0003148,120]
[400584497,1767732663327,-522.84309812,0.00016438,2]
[400584498,1767732663336,-1000.0,0.00017,2]
[400584499,1767732663345,-500.0,0.00024899,2]
[400584500,1767732663354,-3468.0,0.00038,30]
[400584501,1767732663363,-500.0,0.00040855,120]
[400584502,1767732663372,-588.42231102,0.00041095,2]
[400584503,1767732663381,-500.0,0.00041697,120]
[400584504,1767732663390,-500.0,0.00043359,120]
[400584505,1767732663400,-6176.58890288,0.00043382,2]
[400584506,1767732663412,-500.0,0.00043393,120]
[400584507,1767732663421,-500.0,0.00043463,120]
[400584508,1767732663430,-1492.906994,0.00043482,120]
[400584509,1767732663439,-151.0,0.00043482,120]
[400584510,1767732663448,-1492.906994,0.00043482,120]
[400584511,1767732663457,-176.596384,0.00043482,120]
[400584512,1767732663466,-151.0,0.00043482,120]
[400584513,1767732663475,-1218.27936488,0.00043482,120]
[400584514,1767732663620,-274.62762912,0.00043482,120]
[400584515,1767732663630,-1492.906994,0.00043482,120]
[400584516,1767732663639,-1492.906994,0.00043482,120]
[400584517,1767732663648,-1492.906994,0.00043482,120]
[400584518,1767732663657,-1492.906996,0.00043482,120]
[400584519,1767732663669,-151.0,0.00043482,120]
[400584520,1767732663678,-2250179.93644993,0.00043482,7]
[400584521,1767732663713,-394.910511,0.00043482,7]
[400584522,1767732664385,-54.46152286,0.00043482,7]
[400584523,1767732666579,-522.84309812,0.00016438,2]
[400584524,1767732666589,-522.84309812,0.00016438,2]
[400584525,1767732666599,-1000.0,0.00018,2]
[400584526,1767732666608,-565.0,0.00028359,2]
[400584527,1767732666617,-565.0,0.00031359,2]
[400584528,1767732666626,-565.0,0.00034359,2]
[400584529,1767732666635,-565.0,0.00037359,2]
[400584530,1767732666644,-565.0,0.00040359,2]
[400584531,1767732666654,-661.18,0.00042493,30]
[400584532,1767732666664,-171.25,0.0004263,30]
[400584533,1767732666673,-178.99,0.00042685,30]
[400584534,1767732666683,-466.43,0.00042685,30]
[400584535,1767732666692,-565.0,0.00043359,2]
[400584536,1767732666702,-1259.83278225,0.00043382,2]
[400584537,1767732666711,-151.0,0.00043482,120]
[400584538,1767732666720,-151.0,0.00043482,120]
[400584539,1767732666730,-151.0,0.00043482,120]
[400584540,1767732666740,-151.0,0.00043482,120]
[400584541,1767732666749,-151.0,0.00043482,120]
[400584542,1767732666759,-151.0,0.00043482,120]
[400584543,1767732666768,-151.0,0.00043482,120]
[400584544,1767732666778,-190.909684,0.00043482,120]
[400584545,1767732666787,-60621.72014035,0.00043482,7]
[400584546,1767732666946,-239223.64644354,0.00043482,7]
[400584547,1767732666968,-179403.71216514,0.00043482,7]
[400584548,1767732666979,-116061.80057419,0.00043482,7]
[400584549,1767732669229,299.49802061,0.00015948,2]
[400584550,1767732671156,247.05900623,0.00015948,2]
[400584551,1767732674308,500.0,0.00016048,2]
[400584552,1767732674373,523.43391863,0.00016048,2]
[400584553,1767732675173,500.0,0.00016048,2]
[400584554,1767732675205,500.0,0.00016048,2]
[400584555,1767732675276,500.0,0.00016048,2]
[400584556,1767732691873,500.0,0.00016048,2]
[400584557,1767732692277,500.0,0.00016048,2]
[400584558,1767732692411,500.0,0.00016048,2]
[400584559,1767732699088,5430.01905453,0.00015949,2]
[400584560,1767732699116,10000.01,0.00015949,2]
[400584561,1767732699144,10000.01,0.00015949,2]
[400584562,1767732699169,10000.01,0.00015949,2]
[400584563,1767732699195,10000.01,0.00015949,2]
[400584564,1767732699220,10000.01,0.00015949,2]
[400584565,1767732699417,10000.01,0.00015949,2]
[400584566,1767732699446,10000.01,0.00015949,2]
[400584567,1767732699474,10000.01,0.00015949,2]
[400584568,1767732721319,-300.0,0.00015948,2]
[400584569,1767732721356,-9400.01,0.00015949,2]
[400584570,1767732721533,-10000.01,0.00015949,2]
[400584571,1767732732082,-10000.01,0.00015949,2]
[400584572,1767732732460,-10000.01,0.00015949,2]
[400584573,1767732732964,-10000.01,0.00015949,2]
[400584574,1767732733053,-10000.01,0.00015949,2]
[400584575,1767732733087,-10000.01,0.00015949,2]
[400584576,1767732744235,-4179.53396604,0.00015849,2]
[400584577,1767732744303,-1640.94206792,0.00015949,2]
[400584578,1767732744387,-10000.01,0.00015949,2]
[400584579,1767732756920,-196.34467216,0.00015948,2]
[400584580,1767732756953,-500.0,0.00015948,2]
[400584581,1767732756984,-273.68770159,0.00015948,2]
[400584582,1767732757014,-301.98194222,0.00015948,2]
[400584583,1767732757044,-500.0,0.00015948,2]
[400584584,1767732757073,-457.31969553,0.00015948,2]
[400584585,1767732757110,-500.0,0.00015948,2]
[400584586,1767732757143,-537.68720658,0.00015948,2]
[400584587,1767732757546,-3465.96756384,0.00015949,2]
[400584588,1767732757652,-10000.01,0.00015949,2]
[400584589,1767732757914,-10000.01,0.00015949,2]
[400584590,1767732757956,-10000.01,0.00015949,2]
[400584591,1767732758078,-10000.01,0.00015949,2]
[400584592,1767732758118,-10000.01,0.00015949,2]
[400584593,1767732780888,-200.88961593,0.00015849,2]
[400584594,1767732780920,-461.99662673,0.00015948,2]
[400584595,1767732781179,-8674.23751468,0.00015949,2]
[400584596,1767732781231,-10000.01,0.00015949,2]
[400584597,1767732781425,-300.0,0.00015948,2]
[400584598,1767732781435,-9700.01,0.00015949,2]
[400584599,1767732781578,-10000.01,0.00015949,2]
[400584600,1767732781635,-10000.01,0.00015949,2]
[400584601,1767732781866,-10000.01,0.00015949,2]
[400584602,1767732782086,-10000.01,0.00015949,2]
[400584603,1767732782317,-10000.01,0.00015949,2]
[400584604,1767732782643,-10000.01,0.00015949,2]
[400584605,1767732813577,-10000.01,0.00015949,2]
[400584606,1767732813757,-10000.01,0.00015949,2]
[400584607,1767732814090,-10000.01,0.00015949,2]
[400584608,1767732814195,-10000.01,0.00015949,2]
[400584609,1767732814354,-10000.01,0.00015949,2]
[400584610,1767732814547,-10000.01,0.00015949,2]
[400584611,1767732814753,-10000.01,0.00015949,2]
[400584612,1767732814925,-10000.01,0.00015949,2]
[400584613,1767732815062,-10000.01,0.00015949,2]
[400584614,1767732839299,-500.0,0.00015948,2]
[400584615,1767732839331,-500.0,0.00015948,2]
[400584616,1767732839364,-500.0,0.00015948,2]
[400584617,1767732839398,-500.0,0.00015948,2]
[400584618,1767732839430,-500.0,0.00015948,2]
[400584619,1767732839464,-500.0,0.00015948,2]
[400584620,1767732839502,-500.0,0.00015948,2]
[400584621,1767732839535,-500.0,0.00015948,2]
[400584622,1767732839568,-500.0,0.00015948,2]
[400584623,1767732839597,-0.01,0.00015949,2]
[400584624,1767732839710,-999.99,0.00015949,2]
[400584625,1767732839970,-999.99,0.00015949,2]
[400584626,1767732839986,-8000.03,0.00015949,2]
[400584627,1767732840063,-10000.01,0.00015949,2]
[400584628,1767732840089,-10000.01,0.00015949,2]
[400584629,1767732840126,-10000.01,0.00015949,2]
[400584630,1767732840391,-10000.01,0.00015949,2]
[400584631,1767732866983,-300.0,0.00015947,2]
[400584632,1767732867013,-255.0,0.00015948,2]
[400584633,1767732867049,-500.0,0.00015948,2]
[400584634,1767732867083,-614.16332615,0.00015948,2]
[400584635,1767732867116,-500.0,0.00015948,2]
[400584636,1767732867148,-500.0,0.00015948,2]
[400584637,1767732867182,-500.0,0.00015948,2]
[400584638,1767732867213,-500.0,0.00015948,2]
[400584639,1767732867246,-500.0,0.00015948,2]
[400584640,1767732880696,500.0,0.00015948,2]
[400584641,1767732888621,1161.6833477,0.00015949,2]
[400584642,1767732899407,10000.01,0.00015949,2]
[400584643,1767732940630,500.0,0.0003148,120]
[400584644,1767733016464,171.0,9e-07,2]
[400584645,1767733175490,10444.8639151,0.000155,3]
[400584654,1767733215295,500.0,0.00032876,120]
[400584655,1767733258443,1839.35,7.843e-05,2]
[400584656,1767733258611,1839.35,8.256e-05,2]
[400584657,1767733258743,1839.35,8.669e-05,2]
[400584658,1767733259024,1839.35,9.082e-05,2]
[400584659,1767733259168,1839.35,9.494e-05,2]
[400584660,1767733259320,632.26,9.907e-05,2]
[400584661,1767733259353,1207.09,9.907e-05,2]
[400584662,1767733259739,1839.35,0.0001032,2]
[400584663,1767733259920,1839.35,0.00010733,2]
[400584664,1767733260085,1839.35,0.00011146,2]
[400584665,1767733260289,1839.35,0.00011558,2]
[400584666,1767733260448,1839.35,0.00011971,2]
[400584667,1767733260574,1500.06045156,0.00012384,2]
[400584668,1767733260606,339.28954844,0.00012384,2]
[400584669,1767733260767,1839.35,0.00012797,2]
[400584670,1767733260887,1839.35,0.0001321,2]
[400584671,1767733261332,1839.35,0.00013622,2]
[400584672,1767733261580,1839.35,0.00014035,2]
[400584673,1767733261779,1839.35,0.00014448,2]
[400584674,1767733262064,1839.35,0.00014861,2]
[400584675,1767733326560,-1839.35,0.00015273,2]
[400584676,1767733326591,-300.0,0.00015331,2]
[400584677,1767733350212,-4059.6266523,0.00015332,2]
[400584678,1767733363585,-10000.01,0.00015332,2]
[400584679,1767733389144,-1658.960641,0.00015255,2]
[400584680,1767733389231,-6682.088718,0.00015332,2]
[400584681,1767733403722,-200.0,0.0001532,2]
[400584682,1767733403751,-1841.1846297,0.00015332,2]
[400584683,1767733403839,-5917.6407406,0.00015342,2]
[400584684,1767733414547,-10000.01,0.00015342,2]
[400584685,1767733414754,-10000.01,0.00015342,2]
[400584686,1767733434664,-10000.01,0.00015342,2]
[400584687,1767733439325,-8457.1992594,0.00015342,2]
[400584688,1767733439348,-364.92674771,0.00015362,2]
[400584689,1767733439369,-300.0,0.00015391,2]
[400584690,1767733439391,-3485.87399289,0.00015392,2]
[400584691,1767733456497,-10000.01,0.00015392,2]
[400584692,1767733611112,-300.0,0.00015391,2]
[400584693,1767733611136,-300.0,0.00015391,2]
[400584694,1767733611158,-75.15639743,0.00015392,2]
[400584695,1767733616920,-4792.66705258,0.00015392,2]
[400584696,1767733616945,-414.67589484,0.00015392,2]
[400584697,1767733627246,-300.0,0.00015392,2]
[400584698,1767733627279,-1200.0,0.00015392,2]
[400584699,1767733627309,-300.0,0.00015392,2]
[400584700,1767733627338,-300.0,0.00015392,2]
[400584701,1767733627370,-195.0,0.00015392,2]
[400584702,1767733627401,-195.0,0.00015392,2]
[400584703,1767733627567,-5020.01,0.00015393,2]
[400584705,1767733746083,-206.07,0.00015259,2]
[400584706,1767733746112,-300.0,0.00015392,2]
[400584707,1767733746230,-8987.87,0.00015393,2]
[400584708,1767733746543,-10000.01,0.00015393,2]
[400584709,1767733746722,-10000.01,0.00015393,2]
[400584710,1767733746920,-2152.18,0.00015393,2]
[400584711,1767733746948,-5695.65,0.00015393,2]
[400584712,1767733747054,-1000.0,0.00015404,2]
[400584713,1767733747083,-500.0,0.0001541,2]
[400584714,1767733747113,-1839.35,0.00015686,2]
[400584715,1767733747142,-1000.0,0.000157,2]
[400584716,1767733747247,-1321.31,0.00015749,2]
[400584717,1767733785937,1264.7,0.00025338,120]
[400584718,1767733794233,-3927.447,0.00015749,2]
[400584719,1767733794273,-2145.116,0.00015838,2]
[400584720,1767733805051,-300.0,0.00015837,2]
[400584721,1767733805082,-1200.0,0.00015837,2]
[400584722,1767733805176,-7000.01,0.00015838,2]
[400584726,1767733832357,-18127.9524875,0.00015838,2]
[400584727,1767733832367,-282.0,0.00015838,2]
[400584728,1767733832377,-300.0,0.00015847,2]
[400584729,1767733832386,-202.82,0.00015848,2]
[400584730,1767733832396,-1000.0,0.00015848,2]
[400584731,1767733832405,-9999.99,0.00015848,2]
[400584732,1767733832415,-204.93951531,0.00015849,2]
[400584733,1767733832424,-2736.501,0.00015849,2]
[400584734,1767733832433,-163.17,0.00015849,2]
[400584735,1767733832443,-1606.82,0.00015849,2]
[400584736,1767733832453,-7900.63,0.00015849,2]
[400584737,1767733832463,-499.99,0.00015849,2]
[400584738,1767733832472,-3716.66,0.00015849,2]
[400584740,1767733832481,-4999.99,0.00015849,2]
[400584742,1767733832490,-150.99,0.00015849,2]
[400584744,1767733832500,-299.99,0.00015849,2]
[400584746,1767733832509,-14842.29556862,0.00015849,2]
[400584748,1767733832519,-2500.0,0.00015849,2]
[400584750,1767733832528,-200.0,0.00015939,2]
[400584752,1767733832537,-200.0,0.00015939,2]
[400584753,1767733832547,-500.0,0.00015939,2]
[400584755,1767733832557,-200.0,0.00015939,2]
[400584757,1767733832567,-151.0,0.00015939,2]
[400584759,1767733832576,-151.0,0.00015939,2]
[400584761,1767733832586,-151.0,0.00015939,2]
[400584763,1767733832596,-151.0,0.00015939,2]
[400584764,1767733832606,-151.0,0.00015939,2]
[400584765,1767733832615,-151.0,0.00015939,2]
[400584766,1767733832625,-151.0,0.00015939,2]
[400584767,1767733832635,-151.0,0.00015939,2]
[400584768,1767733832646,-151.0,0.00015939,2]
[400584769,1767733832656,-151.0,0.00015939,2]
[400584770,1767733832666,-151.0,0.00015939,2]
[400584771,1767733832675,-500.0,0.00015948,2]
[400584772,1767733832685,-1510.72,0.00015948,2]
[400584773,1767733832695,-531.27888011,0.00015948,2]
[400584774,1767733832705,-270.42173857,0.00015948,2]
[400584775,1767733832715,-500.0,0.00015948,2]
[400584776,1767733832726,-500.0,0.00015948,2]
[400584777,1767733832735,-500.0,0.00015948,2]
[400584778,1767733832744,-500.0,0.00015948,2]
[400584779,1767733832754,-500.0,0.00015948,2]
[400584780,1767733832763,-500.0,0.00015948,2]
[400584781,1767733832773,-500.0,0.00015948,2]
[400584782,1767733832782,-500.0,0.00015948,2]
[400584783,1767733832792,-500.0,0.00015948,2]
[400584784,1767733832801,-500.0,0.00015948,2]
[400584785,1767733832811,-500.0,0.00015948,2]
[400584786,1767733832820,-500.0,0.00015948,2]
[400584787,1767733832829,-500.0,0.00015948,2]
[400584788,1767733832839,-500.0,0.00015948,2]
[400584789,1767733832849,-500.0,0.00015948,2]
[400584790,1767733832859,-500.0,0.00015948,2]
[400584791,1767733832868,-500.0,0.00015948,2]
[400584792,1767733832877,-500.0,0.00015948,2]
[400584793,1767733832887,-500.0,0.00015948,2]
[400584794,1767733832897,-500.0,0.00015948,2]
[400584795,1767733832906,-500.0,0.00015948,2]
[400584796,1767733832915,-500.0,0.00015948,2]
[400584797,1767733832924,-500.0,0.00015948,2]
[400584798,1767733832934,-500.0,0.00015948,2]
[400584799,1767733832944,-500.0,0.00015948,2]
[400584800,1767733832953,-500.0,0.00015948,2]
[400584801,1767733832962,-500.0,0.00015948,2]
[400584802,1767733832973,-383.59845776,0.00015948,2]
[400584803,1767733832983,-500.0,0.00015948,2]
[400584804,1767733832992,-500.0,0.00015948,2]
[400584805,1767733833002,-500.0,0.00015948,2]
[400584806,1767733833012,-500.0,0.00015948,2]
[400584807,1767733833021,-500.0,0.00015948,2]
[400584808,1767733833034,-249.99999999,0.00015948,2]
[400584809,1767733833044,-500.0,0.00015948,2]
[400584810,1767733833053,-182.1692195,0.00015948,2]
[400584811,1767733833063,-500.0,0.00015948,2]
[400584812,1767733833074,-500.0,0.00015948,2]
[400584813,1767733833084,-500.0,0.00015948,2]
[400584814,1767733833093,-500.0,0.00015948,2]
[400584815,1767733833102,-500.0,0.00015948,2]
[400584816,1767733833112,-500.0,0.00015948,2]
[400584817,1767733833121,-500.0,0.00015948,2]
[400584818,1767733833131,-500.0,0.00015948,2]
[400584819,1767733833141,-500.0,0.00015948,2]
[400584820,1767733833151,-500.0,0.00015948,2]
[400584821,1767733833162,-500.0,0.00015948,2]
[400584822,1767733833172,-500.0,0.00015948,2]
[400584823,1767733833181,-500.0,0.00015948,2]
[400584824,1767733833191,-500.0,0.00015948,2]
[400584825,1767733833201,-500.0,0.00015948,2]
[400584826,1767733833210,-500.0,0.00015948,2]
[400584827,1767733833219,-500.0,0.00015948,2]
[400584828,1767733833230,-500.0,0.00015948,2]
[400584829,1767733833240,-500.0,0.00015948,2]
[400584830,1767733833250,-500.0,0.00015948,2]
[400584831,1767733833260,-500.0,0.00015948,2]
[400584832,1767733833270,-397.38134913,0.00015948,2]
[400584833,1767733833282,-151.0,0.00015949,2]
[400584834,1767733833292,-1000.0,0.00015949,2]
[400584835,1767733833302,-1000.0,0.00016,2]
[400584836,1767733833312,-12868.65,0.00016025,2]
[400584837,1767733833322,-544.93100005,0.00016048,2]
[400584838,1767733833331,-500.0,0.00016048,2]
[400584839,1767733833340,-500.0,0.00016048,2]
[400584840,1767733833351,-500.0,0.00016048,2]
[400584841,1767733833360,-500.0,0.00016048,2]
[400584842,1767733833370,-500.0,0.00016048,2]
[400584843,1767733833379,-500.0,0.00016048,2]
[400584844,1767733833388,-1000.0,0.000162,2]
[400584845,1767733833397,-500.0,0.00016222,2]
[400584846,1767733833407,-1510.72,0.00016222,2]
[400584847,1767733833416,-500.0,0.00016437,2]
[400584848,1767733833426,-500.0,0.00016438,2]
[400584849,1767733833435,-500.0,0.00016438,2]
[400584850,1767733833445,-500.0,0.00016438,2]
[400584851,1767733833455,-500.0,0.00016438,2]
[400584852,1767733833465,-500.0,0.00016438,2]
[400584853,1767733833474,-500.0,0.00016438,2]
[400584854,1767733833483,-500.0,0.00016438,2]
[400584855,1767733833492,-500.0,0.00016438,2]
[400584856,1767733833502,-500.0,0.00016438,2]
[400584857,1767733833511,-500.0,0.00016438,2]
[400584858,1767733833521,-500.0,0.00016438,2]
[400584859,1767733833531,-500.0,0.00016438,2]
[400584860,1767733833540,-500.0,0.00016438,2]
[400584861,1767733833550,-500.0,0.00016438,2]
[400584862,1767733833560,-500.0,0.00016438,2]
[400584863,1767733833569,-500.0,0.00016438,2]
[400584864,1767733833579,-500.0,0.00016438,2]
[400584865,1767733833588,-500.0,0.00016438,2]
[400584866,1767733833597,-500.0,0.00016438,2]
[400584867,1767733833607,-500.0,0.00016438,2]
[400584868,1767733833616,-384.17664285,0.00016438,2]
[400584869,1767733833626,-500.0,0.00016438,2]
[400584870,1767733833635,-500.0,0.00016438,2]
[400584871,1767733833644,-500.0,0.00016438,2]
[400584872,1767733833654,-500.0,0.00016438,2]
[400584873,1767733833663,-500.0,0.00016438,2]
[400584874,1767733833672,-500.0,0.00016438,2]
[400584875,1767733833682,-500.0,0.00016438,2]
[400584876,1767733833692,-500.0,0.00016438,2]
[400584877,1767733833701,-500.0,0.00016438,2]
[400584878,1767733833711,-500.0,0.00016438,2]
[400584879,1767733833721,-500.0,0.00016438,2]
[400584880,1767733833731,-500.0,0.00016438,2]
[400584881,1767733833741,-500.0,0.00016438,2]
[400584882,1767733833750,-500.0,0.00016438,2]
[400584883,1767733833761,-500.0,0.00016438,2]
[400584884,1767733833771,-500.0,0.00016438,2]